[Event "Moscow-ch Men 2019"]
[Site "Moscow"]
[Date "2019.04.06"]
[Round "8.5"]
[White "Yeletsky, Ivan"]
[Black "Popov, Ivan"]
[Result "0-1"]
[ECO "D20"]
[WhiteElo "2409"]
[BlackElo "2585"]
[Annotator "RC"]
[PlyCount "68"]
[EventDate "2019.03.30"]
[EventType "swiss"]
[EventCountry "RUS"]
[SourceTitle "playchess.com"]
[Source "ChessBase"]
[SourceQuality "1"]
[TimeControl "5400+30"]

1. d4 {[%emt 0:02:42]} d5 {[%emt 0:00:00]} 2. c4 {[%emt 0:00:07]} dxc4 {[%emt 0:00:00]} 3. e4 {[%emt 0:00:32]} Nf6 {[%emt 0:00:30]} 4. e5 {[%emt 0:00:08]} Nd5 {[%emt 0:00:09]} 5. Bxc4 {[%emt 0:00:09]} Bf5 {[%emt 0:00:51]} 6. Nf3 {[%emt 0:11:38]} e6 {[%emt 0:01:05]} 7. O-O {[%emt 0:07:26]} Be7 {[%emt 0:00:46]} 8. Nc3 {[%emt 0:01:57]} Nb6 {[%emt 0:02:45]} 9. Bb3 {[%emt 0:08:31]} c6 {[%emt 0:00:29]} 10. Be3 {[%emt 0:04:56]} O-O {[%emt 0:00:53]} 11. Ne1 {[%emt 0:05:30]} Nd5 {[%emt 0:11:56]} 12. Nxd5 {[%emt 0:11:55]} cxd5 {[%emt 0:00:16]} 13. Nd3 {[%emt 0:01:12]} Nc6 {[%emt 0:01:34]} 14. g4 {[%emt 0:00:19]} Be4 {[%emt 0:00:30]} 15. f3 {[%emt 0:00:22]} Bg6 {[%emt 0:02:37]} 16. f4 {[%emt 0:00:27]} f5 {[%emt 0:03:58]} 17. exf6 {[%emt 0:00:39]} Rxf6 {[%emt 0:06:28]} 18. Ne5 {[%emt 0:06:16]} Be4 {[%emt 0:06:29]} 19. Nxc6 {[%emt 0:01:49]} bxc6 {[%emt 0:00:49]} 20. Rc1 {[%emt 0:00:49]} Qb6 {[%emt 0:12:54]} 21. Rf2 {[%emt 0:11:22]} Rh6 {[%emt 0:06:51]} 22. Qf1 {[%emt 0:02:54]} Rg6 {[%emt 0:09:49]} 23. Bd1 {[%emt 0:08:16]} Rf8 {[%emt 0:03:06]} 24. Qh3 {[%emt 0:03:18]} Bf6 {[%emt 0:07:22]} 25. Rd2 {[%emt 0:01:34]} Rh6 {[%emt 0:00:02]} 26. Qf1 {[%emt 0:00:07]} e5 {[%emt 0:00:06]} 27. fxe5 {[%emt 0:03:57]} Bxe5 {[%emt 0:01:13]} 28. Qe1 {[%emt 0:00:51]} Rh3 {[%emt 0:03:40]} 29. Rc3 {[%emt 0:01:34]} Bg3 {[%emt 0:09:31]} 30. Qxg3 {[%emt 0:00:15]} Rxg3+ {[%emt 0:00:01]} 31. hxg3 {[%emt 0:00:09]} Qa6 {[%emt 0:00:44]} 32. Bf2 {[%emt 0:00:42]} c5 {[%emt 0:00:40]} 33. g5 {[%emt 0:00:57]} cxd4 {[%emt 0:00:48]} 34. Rc7 {[%emt 0:01:21]} Qa5 {[%emt 0:00:58]} 0-1

[Event "Moscow-ch Men 2019"]
[Site "Moscow"]
[Date "2019.04.06"]
[Round "8.7"]
[White "Afanasiev, Nikita"]
[Black "Savenkov, Konstantin"]
[Result "1-0"]
[ECO "A84"]
[WhiteElo "2527"]
[BlackElo "2373"]
[Annotator "ChessBase"]
[PlyCount "75"]
[EventDate "2019.03.30"]
[EventType "swiss"]
[EventCountry "RUS"]
[SourceTitle "playchess.com"]
[Source "ChessBase"]
[SourceQuality "1"]
[TimeControl "5400+30"]

1. d4 {[%emt 0:37:40]} e6 {[%emt 0:00:47]} 2. c4 {[%emt 0:00:10]} f5 {[%emt 0:00:10]} 3. Nc3 {[%emt 0:00:07]} Nf6 {[%emt 0:00:06]} 4. Qc2 {[%emt 0:00:12]} Bb4 {[%emt 0:02:03]} 5. a3 {[%emt 0:01:10]} Bxc3+ {[%emt 0:00:14]} 6. Qxc3 {[%emt 0:00:03]} b6 {[%emt 0:00:26]} 7. b3 {[%emt 0:00:24]} Bb7 {[%emt 0:00:09]} 8. Bb2 {[%emt 0:00:05]} O-O {[%emt 0:00:54]} 9. Nh3 {[%emt 0:02:18]} Qe7 {[%emt 0:03:39]} 10. f3 {[%emt 0:01:02]} d6 {[%emt 0:02:46]} 11. e3 {[%emt 0:00:22]} Nbd7 {[%emt 0:00:48]} 12. Bd3 {[%emt 0:00:53]} c5 {[%emt 0:01:06]} 13. O-O {[%emt 0:00:55]} Rac8 {[%emt 0:00:19]} 14. Qd2 {[%emt 0:01:50]} d5 {[%emt 0:03:05]} 15. Rac1 {[%emt 0:05:46]} Rfd8 {[%emt 0:00:56]} 16. Qe2 {[%emt 0:11:02]} Qd6 {[%emt 0:04:48]} 17. Rfd1 {[%emt 0:08:18]} Re8 {[%emt 0:01:57]} 18. cxd5 {[%emt 0:02:17]} Nxd5 {[%emt 0:07:54]} 19. e4 {[%emt 0:06:23]} Nc7 {[%emt 0:09:09]} 20. dxc5 {[%emt 0:00:40]} Nxc5 {[%emt 0:00:21]} 21. Bc4 {[%emt 0:00:15]} Qe7 {[%emt 0:01:57]} 22. b4 {[%emt 0:03:24]} Na4 {[%emt 0:01:06]} 23. exf5 {[%emt 0:00:05]} Nxb2 {[%emt 0:00:49]} 24. Qxb2 {[%emt 0:00:05]} Bd5 {[%emt 0:00:21]} 25. Bd3 {[%emt 0:00:51]} Qh4 {[%emt 0:00:45]} 26. Nf2 {[%emt 0:01:59]} Qf4 {[%emt 0:02:51]} 27. Qd2 {[%emt 0:00:25]} Qh4 {[%emt 0:02:48]} 28. Re1 {[%emt 0:01:03]} Qd8 {[%emt 0:02:40]} 29. Qf4 {[%emt 0:04:01]} exf5 {[%emt 0:03:50]} 30. Qxf5 {[%emt 0:00:59]} Rxe1+ {[%emt 0:00:37]} 31. Rxe1 {[%emt 0:00:04]} g6 {[%emt 0:00:05]} 32. Qe5 {[%emt 0:00:41]} Qe8 {[%emt 0:00:33]} 33. Qc3 {[%emt 0:02:02]} Qc6 {[%emt 0:01:30]} 34. Qa1 {[%emt 0:00:43]} Nb5 {[%emt 0:00:27]} 35. Bxb5 {[%emt 0:00:40]} Qxb5 {[%emt 0:00:17]} 36. Ng4 {[%emt 0:00:04]} h5 {[%emt 0:00:19]} 37. Nh6+ {[%emt 0:01:02]} Kh7 {[%emt 0:00:11]} 38. Re7+ {[%emt 0:00:10]} 1-0

[Event "Moscow-ch Men 2019"]
[Site "Moscow"]
[Date "2019.04.06"]
[Round "8.8"]
[White "Smirnov, Timofey"]
[Black "Zakhartsov, Vladimir"]
[Result "0-1"]
[ECO "B92"]
[WhiteElo "2345"]
[BlackElo "2468"]
[Annotator "ChessBase"]
[PlyCount "96"]
[EventDate "2019.03.30"]
[EventType "swiss"]
[EventCountry "RUS"]
[SourceTitle "playchess.com"]
[Source "ChessBase"]
[SourceQuality "1"]
[TimeControl "5400+30"]

1. e4 {[%emt 0:09:24]} c5 {[%emt 0:00:00]} 2. Nf3 {[%emt 0:00:04]} d6 {[%emt 0:00:00]} 3. d4 {[%emt 0:00:04]} cxd4 {[%emt 0:00:00]} 4. Nxd4 {[%emt 0:00:04]} Nf6 {[%emt 0:00:00]} 5. Nc3 {[%emt 0:00:03]} a6 {[%emt 0:00:00]} 6. Be2 {[%emt 0:00:05]} Nbd7 {[%emt 0:00:16]} 7. O-O g6 {[%emt 0:00:17]} 8. Bg5 {[%emt 0:00:41]} Bg7 {[%emt 0:00:13]} 9. Qd2 {[%emt 0:00:22]} O-O {[%emt 0:00:17]} 10. a4 {[%emt 0:01:20]} Nc5 {[%emt 0:04:49]} 11. f3 {[%emt 0:05:01]} Bd7 {[%emt 0:08:21]} 12. Be3 {[%emt 0:02:28]} Rc8 {[%emt 0:05:35]} 13. a5 {[%emt 0:02:46]} e5 {[%emt 0:01:50]} 14. Nb3 {[%emt 0:00:11]} Nxb3 {[%emt 0:00:03]} 15. cxb3 {[%emt 0:00:05]} Be6 {[%emt 0:00:02]} 16. Bb6 {[%emt 0:09:49]} Qd7 {[%emt 0:04:26]} 17. b4 {[%emt 0:04:26]} d5 {[%emt 0:02:53]} 18. Rfd1 {[%emt 0:00:24]} d4 {[%emt 0:07:04]} 19. Na4 {[%emt 0:01:34]} Qe8 {[%emt 0:04:06]} 20. Nc5 {[%emt 0:09:12]} Qe7 {[%emt 0:00:33]} 21. Rac1 {[%emt 0:06:14]} Nd7 {[%emt 0:00:51]} 22. Ba7 {[%emt 0:06:57]} Ra8 {[%emt 0:02:15]} 23. Nxe6 {[%emt 0:02:29]} Qxe6 {[%emt 0:00:59]} 24. Bc5 {[%emt 0:02:32]} Rfc8 {[%emt 0:02:49]} 25. Bc4 {[%emt 0:00:10]} Qf6 {[%emt 0:01:16]} 26. Bd5 {[%emt 0:00:23]} Nxc5 {[%emt 0:00:15]} 27. Rxc5 {[%emt 0:02:17]} Rxc5 {[%emt 0:03:08]} 28. bxc5 {[%emt 0:00:20]} Rc8 {[%emt 0:00:06]} 29. Qb4 {[%emt 0:04:03]} Bf8 {[%emt 0:07:42]} 30. Qb6 {[%emt 0:01:59]} Qe7 {[%emt 0:05:04]} 31. b4 {[%emt 0:11:28]} Rc7 {[%emt 0:00:18]} 32. g3 {[%emt 0:00:04]} Bh6 {[%emt 0:00:36]} 33. Kg2 {[%emt 0:00:40]} Kg7 {[%emt 0:00:13]} 34. h4 {[%emt 0:00:49]} Be3 {[%emt 0:00:17]} 35. Rd3 {[%emt 0:02:15]} Rd7 {[%emt 0:02:33]} 36. Rb3 {[%emt 0:05:31]} h5 {[%emt 0:00:58]} 37. Kh3 {[%emt 0:09:34]} Rxd5 {[%emt 0:03:49]} 38. exd5 {[%emt 0:00:01]} Qd7+ {[%emt 0:00:05]} 39. Kg2 {[%emt 0:00:17]} Qxd5 {[%emt 0:00:47]} 40. Rb2 {[%emt 0:00:23]} e4 {[%emt 0:01:28]} 41. fxe4 {[%emt 0:00:43]} Qxe4+ {[%emt 0:00:06]} 42. Kh2 {[%emt 0:00:02]} d3 {[%emt 0:00:20]} 43. Qd6 {[%emt 0:01:04]} Bd4 {[%emt 0:04:42]} 44. Rd2 {[%emt 0:00:04]} Bg1+ {[%emt 0:00:26]} 45. Kxg1 {[%emt 0:00:26]} Qe1+ {[%emt 0:00:03]} 46. Kh2 {[%emt 0:00:05]} Qxd2+ {[%emt 0:00:10]} 47. Kh3 {[%emt 0:00:03]} Qe1 {[%emt 0:00:42]} 48. Qd4+ {[%emt 0:00:49]} Kh7 {[%emt 0:00:05]} 0-1

[Event "Moscow-ch Men 2019"]
[Site "Moscow"]
[Date "2019.04.06"]
[Round "8.9"]
[White "Dvalishvili, Pavel S."]
[Black "Ivanov, Oleg V"]
[Result "1/2-1/2"]
[ECO "B31"]
[WhiteElo "2407"]
[BlackElo "2441"]
[Annotator "NA"]
[PlyCount "66"]
[EventDate "2019.03.30"]
[EventType "swiss"]
[EventCountry "RUS"]
[SourceTitle "playchess.com"]
[Source "ChessBase"]
[SourceQuality "1"]
[TimeControl "5400+30"]

1. e4 {[%emt 0:00:00]} c5 {[%emt 0:00:20]} 2. Nf3 {[%emt 0:00:00]} Nc6 {[%emt 0:00:24]} 3. Bb5 {[%emt 0:00:00]} g6 {[%emt 0:00:42]} 4. O-O {[%emt 0:00:03]} Bg7 {[%emt 0:00:25]} 5. Re1 {[%emt 0:00:25]} Nf6 {[%emt 0:01:06]} 6. e5 {[%emt 0:02:02]} Nd5 {[%emt 0:00:33]} 7. Nc3 {[%emt 0:00:02]} Nc7 {[%emt 0:00:14]} 8. Bxc6 {[%emt 0:00:18]} dxc6 {[%emt 0:00:09]} 9. h3 {[%emt 0:00:01]} O-O {[%emt 0:08:57]} 10. d3 {[%emt 0:00:11]} Ne6 {[%emt 0:02:07]} 11. Ne4 {[%emt 0:00:43]} b6 {[%emt 0:04:49]} 12. Neg5 {[%emt 0:10:37] LiveBook: 27 Games} Nd4 {[%emt 0:16:18] B31: Sicilian: 2...Nc6 3 Bb5 g6} 13. c3 $146 {[%emt 0:03:50]} ({Predecessor:} 13. Bf4 h6 14. Ne4 Kh7 15. b3 Be6 16. a4 a5 17. Nxd4 cxd4 18. Qf3 Bd5 19. h4 Qd7 20. Qg3 {½-½ (30) Adams,M (2708)-Adhiban,B (2683) Astana 2019}) 13... Nxf3+ {[%emt 0:22:23]} 14. Nxf3 {[%emt 0:00:05]} Bf5 {[%emt 0:00:40]} 15. d4 {[%emt 0:00:17]} Qd5 {[%emt 0:00:19]} 16. Qe2 {[%emt 0:03:45]} cxd4 {[%emt 0:11:19]} 17. Nxd4 {[%emt 0:00:27]} Be6 {[%emt 0:09:08]} 18. Bg5 {[%emt 0:01:13]} c5 {[%emt 0:00:28]} 19. Nxe6 {[%emt 0:04:48]} Qxe6 {[%emt 0:00:01]} 20. Qg4 {[%emt 0:00:22]} Qxg4 {[%emt 0:03:56]} 21. hxg4 {[%emt 0:00:03]} f6 {[%emt 0:00:24]} 22. exf6 {[%emt 0:00:01]} exf6 {[%emt 0:01:11]} 23. Bf4 {[%emt 0:00:06]} Rfe8 {[%emt 0:00:32]} 24. Kf1 {[%emt 0:00:02]} Kf7 {[%emt 0:00:17]} 25. a4 {[%emt 0:00:31]} Rxe1+ {[%emt 0:02:27]} 26. Rxe1 {[%emt 0:00:07]} Rd8 $11 {[%emt 0:00:38]} 27. f3 {[%emt 0:06:29]} Bf8 {[%emt 0:00:42]} 28. b3 {[%emt 0:03:58]} Bd6 {[%emt 0:03:41]} 29. Rd1 {[%emt 0:00:22]} Ke7 {[%emt 0:00:11]} 30. Re1+ {[%emt 0:00:02]} Kf7 {[%emt 0:00:31]} 31. Rd1 {[%emt 0:00:01]} Ke7 {[%emt 0:00:15]} 32. Re1+ {[%emt 0:00:00]} Kf7 {[%emt 0:00:40]} 33. Rd1 {[%emt 0:00:01]} Ke7 1/2-1/2

[Event "Moscow-ch Men 2019"]
[Site "Moscow"]
[Date "2019.04.06"]
[Round "8.10"]
[White "Salman, Pavel"]
[Black "Galaktionov, Artem"]
[Result "0-1"]
[ECO "D02"]
[WhiteElo "2248"]
[BlackElo "2332"]
[Annotator "NA"]
[PlyCount "102"]
[EventDate "2019.03.30"]
[EventType "swiss"]
[EventCountry "RUS"]
[SourceTitle "playchess.com"]
[Source "ChessBase"]
[SourceQuality "1"]
[TimeControl "5400+30"]

1. d4 {[%emt 0:00:00]} d5 {[%emt 0:01:13]} 2. Nf3 {[%emt 0:00:05]} Nf6 {[%emt 0:00:15]} 3. c4 {[%emt 0:00:15]} e6 {[%emt 0:00:04]} 4. g3 {[%emt 0:00:11]} Bb4+ {[%emt 0:00:03]} 5. Bd2 {[%emt 0:00:52]} Be7 {[%emt 0:00:05]} 6. Bg2 {[%emt 0:00:14]} O-O {[%emt 0:00:04]} 7. O-O {[%emt 0:00:16]} c6 {[%emt 0:00:02]} 8. Qb3 {[%emt 0:00:38]} Nbd7 {[%emt 0:00:18]} 9. Bf4 {[%emt 0:05:27]} b6 {[%emt 0:00:03]} 10. Nc3 {[%emt 0:01:02] LiveBook: 80 Games} Ba6 {[%emt 0:00:05]} 11. Nd2 $11 {[%emt 0:06:16]} Nh5 {[%emt 0:04:50]} 12. Be3 {[%emt 0:11:41]} Bd6 {[%emt 0:23:55]} 13. Rfc1 {[%emt 0:09:30]} Qe7 {[%emt 0:01:52]} 14. Bf3 {[%emt 0:06:53]} Nhf6 {[%emt 0:02:07]} 15. a4 {[%emt 0:01:21]} Rab8 {[%emt 0:04:22]} 16. Qd1 {[%emt 0:08:01]} Rfc8 {[%emt 0:04:39]} 17. b3 {[%emt 0:02:50]} h6 {[%emt 0:00:57]} 18. h3 {[%emt 0:04:46]} Nh7 {[%emt 0:11:34]} 19. Bg2 {[%emt 0:07:17]} f5 {[%emt 0:00:33]} 20. cxd5 {[%emt 0:05:10]} exd5 {[%emt 0:00:25]} 21. Bf4 {[%emt 0:01:25]} Nhf6 {[%emt 0:02:57]} 22. Bxd6 {[%emt 0:10:58]} Qxd6 {[%emt 0:00:17]} 23. Rab1 {[%emt 0:00:30]} Qb4 {[%emt 0:08:05]} 24. Nf1 {[%emt 0:01:29]} Ne4 {[%emt 0:01:19]} 25. Na2 {[%emt 0:00:58]} Qd6 {[%emt 0:00:13]} 26. Qe1 {[%emt 0:00:26]} c5 {[%emt 0:10:04]} 27. Ne3 {[%emt 0:03:34]} Qe6 {[%emt 0:04:19]} 28. Rd1 {[%emt 0:02:39]} Ndf6 {[%emt 0:00:14]} 29. Nc2 {[%emt 0:03:54]} c4 {[%emt 0:01:10]} 30. b4 {[%emt 0:04:57]} Re8 {[%emt 0:00:31]} 31. b5 {[%emt 0:00:12]} Bb7 {[%emt 0:00:01]} 32. Nab4 {[%emt 0:00:44]} g5 {[%emt 0:00:56]} 33. Ra1 {[%emt 0:00:41]} Nd6 {[%emt 0:00:40]} 34. Bf1 {[%emt 0:00:41]} f4 {[%emt 0:00:26]} 35. Ra3 {[%emt 0:00:15]} Nfe4 {[%emt 0:01:58]} 36. Rf3 {[%emt 0:00:47]} Rf8 {[%emt 0:00:36]} 37. Ra1 {[%emt 0:00:35]} Rf7 {[%emt 0:00:16]} 38. Raa3 {[%emt 0:00:29]} Rbf8 {[%emt 0:00:13]} 39. Bg2 {[%emt 0:00:30]} c3 {[%emt 0:01:55]} 40. Raxc3 {[%emt 0:00:38]} Nxc3 {[%emt 0:00:06]} 41. Rxc3 {[%emt 0:00:02]} fxg3 {[%emt 0:00:22]} 42. f3 {[%emt 0:00:50]} Nf5 {[%emt 0:01:18]} 43. Kh1 {[%emt 0:00:40]} Re8 {[%emt 0:00:42]} 44. e3 {[%emt 0:00:30]} Rc8 {[%emt 0:01:26]} 45. Rxc8+ {[%emt 0:00:13]} Qxc8 {[%emt 0:00:06]} 46. Qd2 {[%emt 0:00:53]} Nh4 {[%emt 0:00:37]} 47. Ne1 {[%emt 0:00:26]} Qf5 {[%emt 0:01:23]} 48. Nbd3 {[%emt 0:00:20]} Rc7 {[%emt 0:00:28]} 49. Qe2 {[%emt 0:00:43]} Rc3 {[%emt 0:00:54]} 50. Ne5 {[%emt 0:00:10]} Qb1 {[%emt 0:00:46]} 51. Qd2 {[%emt 0:00:31]} Rc2 {[%emt 0:01:42]} 0-1

[Event "Moscow-ch Men 2019"]
[Site "Moscow"]
[Date "2019.04.06"]
[Round "8.12"]
[White "Trusov, Mikhail"]
[Black "Golubov, Saveliy"]
[Result "0-1"]
[ECO "A05"]
[WhiteElo "2143"]
[BlackElo "2460"]
[Annotator "ChessBase"]
[PlyCount "52"]
[EventDate "2019.03.30"]
[EventType "swiss"]
[EventCountry "RUS"]
[SourceTitle "playchess.com"]
[Source "ChessBase"]
[SourceQuality "1"]
[TimeControl "5400+30"]

1. Nf3 {[%emt 0:00:00]} Nf6 {[%emt 0:00:00]} 2. g3 {[%emt 0:00:00]} g6 {[%emt 0:01:48]} 3. Bg2 {[%emt 0:00:00]} Bg7 {[%emt 0:00:15]} 4. O-O {[%emt 0:00:00]} O-O {[%emt 0:00:13]} 5. d4 {[%emt 0:00:03]} d6 {[%emt 0:01:10]} 6. Nc3 {[%emt 0:04:59]} Nbd7 {[%emt 0:00:25]} 7. e4 {[%emt 0:00:06]} e5 {[%emt 0:00:15]} 8. h3 {[%emt 0:03:50]} exd4 {[%emt 0:01:38]} 9. Nxd4 {[%emt 0:00:01]} Re8 {[%emt 0:00:20]} 10. Re1 {[%emt 0:00:16]} Nc5 {[%emt 0:00:18]} 11. Bf4 {[%emt 0:07:37]} h6 {[%emt 0:04:50]} 12. g4 {[%emt 0:04:18]} h5 {[%emt 0:05:27]} 13. f3 {[%emt 0:04:55]} hxg4 {[%emt 0:02:03]} 14. fxg4 {[%emt 0:03:31]} Nfd7 {[%emt 0:01:49]} 15. Qd2 {[%emt 0:04:51]} Ne5 {[%emt 0:05:43]} 16. b3 {[%emt 0:06:22]} c6 {[%emt 0:00:11]} 17. Rad1 {[%emt 0:00:25]} Qa5 {[%emt 0:00:38]} 18. a4 {[%emt 0:07:10]} Ned3 {[%emt 0:03:35]} 19. Nde2 {[%emt 0:05:43]} Nxf4 {[%emt 0:01:41]} 20. Qxf4 {[%emt 0:00:12]} Bxc3 {[%emt 0:00:09]} 21. Nxc3 {[%emt 0:00:39]} Qxc3 {[%emt 0:00:09]} 22. Qxd6 {[%emt 0:00:14]} Be6 {[%emt 0:00:29]} 23. Rf1 {[%emt 0:01:15]} Rad8 {[%emt 0:00:31]} 24. Qxd8 {[%emt 0:00:40]} Rxd8 {[%emt 0:00:05]} 25. Rxd8+ {[%emt 0:00:04]} Kg7 {[%emt 0:00:07]} 26. Rdd1 {[%emt 0:03:18]} Qxc2 {[%emt 0:00:15]} 0-1

[Event "Moscow-ch Men 2019"]
[Site "Moscow"]
[Date "2019.04.06"]
[Round "8.13"]
[White "Spichkin, Alexander"]
[Black "Yeritsyan, Aram"]
[Result "0-1"]
[ECO "A45"]
[WhiteElo "2197"]
[BlackElo "2301"]
[Annotator "NA"]
[PlyCount "94"]
[EventDate "2019.03.30"]
[EventType "swiss"]
[EventCountry "RUS"]
[SourceTitle "playchess.com"]
[Source "ChessBase"]
[SourceQuality "1"]
[TimeControl "5400+30"]

1. d4 {[%emt 0:00:00]} Nf6 {[%emt 0:00:00]} 2. Bg5 {[%emt 0:00:00]} e6 {[%emt 0:00:00]} 3. Nd2 {[%emt 0:00:00]} c5 {[%emt 0:00:00]} 4. e3 {[%emt 0:00:01]} cxd4 {[%emt 0:00:05] LiveBook: 77 Games} 5. exd4 {[%emt 0:00:05]} h6 {[%emt 0:00:08]} 6. Bxf6 {[%emt 0:00:34]} Qxf6 {[%emt 0:00:19]} 7. Ngf3 {[%emt 0:00:13]} b6 {[%emt 0:01:11]} 8. Bd3 {[%emt 0:00:14]} Bb7 {[%emt 0:00:23]} 9. Qe2 {[%emt 0:00:15]} Nc6 {[%emt 0:00:48]} 10. c3 {[%emt 0:00:29]} Be7 {[%emt 0:05:09]} 11. O-O-O {[%emt 0:03:18]} a6 {[%emt 0:03:14]} 12. Kb1 {[%emt 0:01:18]} b5 $14 {[%emt 0:00:30]} 13. Rhe1 {[%emt 0:02:29]} O-O {[%emt 0:00:50]} 14. Ne4 {[%emt 0:04:26]} Qf4 {[%emt 0:00:55]} 15. g3 {[%emt 0:01:43]} Qc7 {[%emt 0:00:09]} 16. g4 {[%emt 0:01:54]} d5 {[%emt 0:07:04]} 17. Ned2 {[%emt 0:01:55]} b4 {[%emt 0:03:47]} 18. c4 {[%emt 0:05:29]} Qf4 {[%emt 0:10:05]} 19. Rg1 {[%emt 0:05:46]} Nxd4 {[%emt 0:05:01]} 20. Nxd4 {[%emt 0:00:09]} Qxd4 {[%emt 0:00:02]} 21. cxd5 {[%emt 0:05:19]} Bxd5 {[%emt 0:01:03]} 22. Ne4 {[%emt 0:03:28]} Qe5 {[%emt 0:06:00]} 23. f4 {[%emt 0:09:18]} Qxf4 {[%emt 0:00:10]} 24. Rdf1 {[%emt 0:00:16]} Qe5 {[%emt 0:00:34]} 25. g5 {[%emt 0:00:17]} hxg5 {[%emt 0:00:42]} 26. h4 {[%emt 0:08:18]} g4 {[%emt 0:04:49]} 27. Qxg4 {[%emt 0:03:57]} f5 {[%emt 0:00:06]} 28. Qg3 {[%emt 0:00:12]} Qxg3 {[%emt 0:00:57]} 29. Nxg3 {[%emt 0:00:03]} Bc5 {[%emt 0:01:18]} 30. Nh5 {[%emt 0:00:30]} Bxg1 {[%emt 0:00:06]} 31. Rxg1 {[%emt 0:00:03]} Ra7 {[%emt 0:00:20]} 32. Nf4 {[%emt 0:00:39]} Be4 {[%emt 0:00:24]} 33. Bxe4 {[%emt 0:00:08]} fxe4 {[%emt 0:00:01]} 34. Nxe6 {[%emt 0:00:08]} Rf2 {[%emt 0:00:20]} 35. Ng5 {[%emt 0:00:48]} e3 {[%emt 0:00:18]} 36. Re1 {[%emt 0:00:45]} Re7 {[%emt 0:00:48]} 37. Nh3 {[%emt 0:00:27]} Rd2 {[%emt 0:01:43]} 38. Nf4 {[%emt 0:00:43]} Re4 {[%emt 0:00:20]} 39. Ne2 {[%emt 0:01:15]} Rxh4 {[%emt 0:00:07]} 40. Nc1 {[%emt 0:00:03]} Rhh2 {[%emt 0:01:35]} 41. Rxe3 {[%emt 0:00:08]} Rh1 {[%emt 0:01:19]} 42. Re8+ {[%emt 0:02:12]} Kh7 {[%emt 0:00:03]} 43. Rc8 {[%emt 0:00:06]} g5 {[%emt 0:00:04]} 44. Rc7+ {[%emt 0:00:28]} Kg6 {[%emt 0:00:02]} 45. Rc6+ {[%emt 0:00:04]} Kh5 {[%emt 0:00:02]} 46. Rxa6 {[%emt 0:00:04]} g4 {[%emt 0:00:11]} 47. Ra8 {[%emt 0:00:16]} Rdd1 {[%emt 0:00:05]} 0-1

[Event "Moscow-ch Men 2019"]
[Site "Moscow"]
[Date "2019.04.06"]
[Round "8.14"]
[White "Geivondian, Arman"]
[Black "Sekoyan, Vachagan"]
[Result "1-0"]
[ECO "A40"]
[WhiteElo "2388"]
[BlackElo "1884"]
[Annotator "NA"]
[PlyCount "103"]
[EventDate "2019.03.30"]
[EventType "swiss"]
[EventCountry "RUS"]
[SourceTitle "playchess.com"]
[Source "ChessBase"]
[SourceQuality "1"]
[TimeControl "5400+30"]

1. d4 {[%emt 0:14:12]} g6 {[%emt 0:00:00]} 2. c4 {[%emt 0:00:05]} Bg7 {[%emt 0:00:00]} 3. e4 {[%emt 0:00:06]} d6 {[%emt 0:00:00]} 4. Nc3 {[%emt 0:00:06]} e5 {[%emt 0:00:00]} 5. Nge2 {[%emt 0:00:14]} Nc6 {[%emt 0:00:25]} 6. Be3 {[%emt 0:00:05]} h5 $14 {[%emt 0:01:33]} 7. Qd2 {[%emt 0:13:17]} Nh6 {[%emt 0:15:54]} 8. f3 {[%emt 0:01:16]} f6 {[%emt 0:00:43]} 9. O-O-O {[%emt 0:02:00]} Nf7 {[%emt 0:01:47]} 10. h3 {[%emt 0:02:58]} a6 {[%emt 0:06:58]} 11. Kb1 {[%emt 0:01:29]} Rb8 {[%emt 0:02:56]} 12. Qc2 {[%emt 0:03:16]} Bd7 {[%emt 0:05:09]} 13. c5 {[%emt 0:00:47]} Ne7 {[%emt 0:10:22]} 14. Qb3 {[%emt 0:09:28]} Qc8 {[%emt 0:03:36]} 15. Rg1 {[%emt 0:07:02]} dxc5 {[%emt 0:18:01]} 16. dxe5 {[%emt 0:00:40]} c4 {[%emt 0:04:22]} 17. Qxc4 {[%emt 0:04:27]} Nxe5 {[%emt 0:02:39]} 18. Qb3 {[%emt 0:00:14]} Be6 {[%emt 0:00:43]} 19. Qc2 {[%emt 0:00:03]} O-O {[%emt 0:02:20]} 20. f4 {[%emt 0:13:33]} N5c6 {[%emt 0:02:18]} 21. Nd4 {[%emt 0:08:21]} Nxd4 {[%emt 0:02:22]} 22. Rxd4 {[%emt 0:00:54]} Nc6 {[%emt 0:02:12]} 23. Rd1 {[%emt 0:00:45]} Rd8 {[%emt 0:15:11]} 24. Rxd8+ {[%emt 0:02:07]} Qxd8 {[%emt 0:00:29]} 25. g4 {[%emt 0:00:14]} hxg4 {[%emt 0:01:01]} 26. hxg4 {[%emt 0:00:40]} Bf7 {[%emt 0:00:55]} 27. Rh1 {[%emt 0:00:42]} Nd4 {[%emt 0:00:38]} 28. Qh2 {[%emt 0:01:36]} c5 {[%emt 0:00:25]} 29. f5 {[%emt 0:01:34]} g5 {[%emt 0:00:45]} 30. Nd5 {[%emt 0:00:35]} Rc8 {[%emt 0:00:15]} 31. Bc4 {[%emt 0:02:47]} b5 {[%emt 0:00:20]} 32. Bxd4 {[%emt 0:00:17]} bxc4 {[%emt 0:01:02]} 33. Bc3 {[%emt 0:01:59]} Bxd5 {[%emt 0:00:09]} 34. exd5 {[%emt 0:00:07]} Qxd5 {[%emt 0:00:02]} 35. Re1 {[%emt 0:02:42]} Qd3+ {[%emt 0:01:11]} 36. Ka1 {[%emt 0:00:06]} Rd8 {[%emt 0:00:19]} 37. a3 {[%emt 0:00:24]} Qd7 {[%emt 0:00:23]} 38. Qe2 {[%emt 0:00:47]} Qf7 {[%emt 0:00:45]} 39. Ka2 {[%emt 0:00:29]} Kf8 {[%emt 0:00:42]} 40. Qe6 {[%emt 0:01:16]} Re8 41. Qd6+ {[%emt 0:01:14]} Kg8 {[%emt 0:00:36]} 42. Rxe8+ {[%emt 0:02:41]} Qxe8 {[%emt 0:00:01]} 43. Qd5+ {[%emt 0:00:35]} Kh7 {[%emt 0:00:57]} 44. Qxc4 {[%emt 0:00:05]} Qb5 {[%emt 0:00:59]} 45. Qxb5 {[%emt 0:00:27]} axb5 {[%emt 0:00:01]} 46. a4 {[%emt 0:00:16]} bxa4 {[%emt 0:00:29]} 47. Ka3 {[%emt 0:00:04]} Kg8 {[%emt 0:00:27]} 48. Kxa4 {[%emt 0:00:04]} Kf7 {[%emt 0:00:04]} 49. Kb5 {[%emt 0:00:08]} Bf8 {[%emt 0:00:05]} 50. b3 {[%emt 0:00:24]} Be7 {[%emt 0:00:20]} 51. Kc6 {[%emt 0:00:09]} Bf8 {[%emt 0:01:08]} 52. Kd7 {[%emt 0:00:06]} 1-0